bitfinex-derivatives/quotes_ETHF0:USTF0_20241023
["timestamp","ask_amount","ask_price","bid_price","bid_amount"]
[1729702440877,4.57751358,2498.4,2498.3,0.80056]
[1729702441078,3.2078,2498.5,2498.4,0.40055]
[1729702441385,4.20579122,2498.4,2498.3,0.80057]
[1729702441580,7.41359122,2498.5,2498.3,0.80057]
[1729702441581,4.20579122,2498.5,2498.4,0.40055]
[1729702441887,7.5278,2498.8,2498.7,0.4005]
[1729702442089,7.2102,2498.8,2498.7,0.4005]
[1729702442383,4.0024,2498.8,2498.6,0.40051]
[1729702442586,4.41132072,2498.8,2498.7,0.4005]
[1729702442885,4.27655109,2499.0,2498.4,3.2078]
[1729702443089,4.27655109,2499.0,2498.3,0.4]
[1729702443090,7.5278,2498.8,2498.3,0.4]
[1729702443298,7.5278,2498.5,2497.6,3.2078]
[1729702443484,0.40063,2497.9,2497.4,0.4007]
[1729702443678,8.52927,2498.2,2497.7,0.40066]
[1729702443679,0.40063,2498.0,2497.7,0.40066]
[1729702443884,7.9201591,2497.9,2497.6,0.40067]
[1729702444084,7.9201591,2497.9,2497.3,3.2078]
[1729702444085,0.40071,2497.4,2497.3,3.2078]
[1729702444385,0.40071,2497.4,2495.9,2.00478]
[1729702444386,0.40096,2495.9,2495.0,4.76793454]
[1729702444686,1.00203,2496.9,2494.6,1.00288]
[1729702444687,7.5278,2495.4,2494.6,40.8]
[1729702444889,7.5278,2495.1,2494.5,0.40117]
[1729702445085,7.5278,2495.1,2493.4,1.04008969]
[1729702445086,3.2078,2494.8,2493.9,3.2078]
[1729702445293,4.27882512,2495.3,2493.9,3.2078]
[1729702445294,3.2078,2494.5,2493.9,3.2078]
[1729702445591,3.2078,2494.5,2492.5,1.04008969]
[1729702445592,0.40125,2494.1,2493.5,0.40133]
[1729702445789,0.40125,2494.1,2492.6,1.0037]
[1729702445790,0.91434147,2494.4,2494.0,3.2078]
[1729702446089,3.2078,2494.9,2494.3,3.2078]
[1729702446294,6.3239,2497.0,2494.0,3.2078]
[1729702446295,4.48900897,2494.3,2494.0,3.2078]
[1729702446485,3.2078,2494.3,2493.8,3.2078]
[1729702446794,3.2078,2494.4,2494.2,3.2078]
[1729702447095,3.2078,2495.6,2494.3,7.5278]
[1729702447285,3.2078,2495.3,2495.0,3.2078]
[1729702447483,7.46394389,2495.4,2495.3,0.40104]
[1729702447689,4.25614389,2495.6,2495.5,3.2078]
[1729702447887,4.25614389,2495.7,2495.5,3.2078]
[1729702448084,3.3079,2495.8,2495.6,0.401]
[1729702448286,3.3079,2495.8,2495.7,3.2078]
[1729702448488,3.2078,2495.8,2495.7,3.2078]
[1729702448689,7.47715608,2495.8,2495.7,3.60879]
[1729702448890,7.47715608,2495.8,2495.3,0.40104]
[1729702449083,7.47715608,2495.8,2495.5,3.60881]
[1729702449286,7.47715608,2495.8,2495.5,3.6088]
[1729702449481,7.47715608,2495.8,2495.3,0.40105]
[1729702449681,3.2078,2495.5,2495.3,3.2078]
[1729702449893,4.0072,2495.4,2494.4,6.187]
[1729702450092,7.45315467,2495.4,2495.0,3.2078]
[1729702450292,4.24535467,2495.4,2495.1,3.2078]
[1729702450590,3.2078,2495.5,2495.3,3.2078]
[1729702450890,3.2078,2495.5,2494.7,4.32]
[1729702450891,4.24535467,2495.4,2494.7,4.32]
[1729702451093,4.24535467,2495.4,2495.3,0.40105]
[1729702451293,0.1001,2495.9,2495.8,0.40097]
[1729702451483,0.1001,2496.0,2495.9,0.40095]
[1729702451787,4.32,2496.8,2495.9,3.2078]
[1729702451991,3.2078,2496.6,2496.2,0.4009]
[1729702452183,7.40324165,2496.6,2496.0,0.40093]
[1729702452383,3.2078,2496.6,2495.9,3.2078]
[1729702452585,4.19544165,2496.5,2495.9,3.2078]
[1729702452986,4.19544165,2496.5,2496.4,0.40087]
[1729702453396,0.1001,2496.7,2496.4,4.0056]
[1729702453692,3.2078,2497.5,2496.6,3.2078]
[1729702453892,4.32,2497.8,2497.0,3.2078]
[1729702454092,2.174,2498.1,2496.7,40.8]
[1729702454093,0.40079,2497.0,2496.7,40.8]
[1729702454290,4.0048,2496.9,2496.1,3.2078]
[1729702454490,0.40083,2496.7,2496.1,0.40091]
[1729702454792,4.55050991,2496.9,2495.6,2.3458]
[1729702454793,4.55050991,2496.6,2496.3,0.40088]
[1729702455090,4.2582623,2496.7,2496.4,0.40086]
[1729702455294,4.0056,2496.6,2496.3,0.40089]
[1729702455495,3.2078,2496.8,2496.3,3.2078]
[1729702455697,4.63831377,2496.5,2496.3,3.2078]
[1729702455885,4.63831377,2496.5,2496.4,0.40087]
[1729702456195,3.229789,2496.9,2496.3,3.2078]
[1729702456386,3.229789,2496.9,2496.4,0.40086]
[1729702456585,4.32775463,2496.6,2496.4,0.40086]
[1729702456794,0.40078,2497.0,2496.5,0.40086]
[1729702456989,4.31087604,2496.5,2496.3,3.2078]
[1729702457186,4.31087604,2496.5,2494.9,3.2078]
[1729702457187,1.00224,2496.3,2494.9,3.2078]
[1729702457387,3.2078,2495.5,2495.1,0.40107]
[1729702457589,0.40103,2495.5,2494.9,3.60891]
[1729702457789,4.31087604,2495.4,2494.9,3.2078]
[1729702457989,4.31087604,2495.4,2495.3,0.40105]
[1729702458397,4.72091,2496.2,2495.7,0.40097]
[1729702458599,4.72091,2496.2,2495.3,3.2078]
[1729702458600,3.2078,2496.1,2495.3,3.2078]
[1729702458804,4.17585811,2495.5,2495.4,0.40102]
[1729702459097,4.31620768,2496.0,2495.7,0.40098]
[1729702459300,4.31620768,2496.0,2495.3,3.2078]
[1729702459600,4.31620768,2496.0,2495.7,0.40098]
[1729702459792,4.31620768,2496.0,2495.3,3.2078]
[1729702460395,4.31620768,2496.0,2495.3,4.21043]
[1729702460587,4.31620768,2496.0,2495.9,0.40095]
[1729702460791,4.31620768,2496.0,2495.3,4.21043]
[1729702460792,4.31620768,2496.0,2495.7,0.40098]
[1729702461000,4.31620768,2496.0,2495.8,0.40097]
[1729702461299,4.31620768,2496.0,2495.9,0.40095]
[1729702461888,4.31620768,2496.0,2495.9,41.20095]
[1729702462290,4.62801651,2496.1,2496.0,0.40094]
[1729702462492,0.40078,2497.0,2496.7,0.40082]
[1729702462694,3.2078,2497.1,2497.0,0.40078]
[1729702463098,7.71633481,2497.1,2497.0,0.40078]
[1729702463499,4.50853481,2497.1,2497.0,0.40078]
[1729702465792,0.40073,2497.3,2497.2,3.2078]
[1729702465996,0.40073,2497.3,2497.0,0.40077]
[1729702466192,0.40073,2497.3,2496.6,3.2078]
[1729702466193,8.74912327,2497.3,2496.6,3.2078]
[1729702466394,8.74912327,2497.3,2496.2,2.1829]
[1729702466395,0.40078,2497.0,2496.7,0.40082]
[1729702466596,11.95692327,2497.3,2496.5,3.2078]
[1729702466800,4.42912327,2496.9,2496.8,0.40081]
[1729702467000,0.40075,2497.2,2496.7,0.40082]
[1729702467001,4.64156084,2497.2,2496.7,0.40082]
[1729702467201,4.64156084,2497.2,2496.6,40.8]
[1729702467202,4.64156084,2497.2,2496.9,0.40078]
[1729702467506,7.5278,2497.3,2496.6,40.8]
[1729702467805,4.24081084,2497.2,2497.0,0.40078]
[1729702468312,4.24081084,2497.2,2497.1,0.40076]
[1729702468693,3.2078,2497.3,2497.2,0.40074]
[1729702468900,0.1,2497.7,2497.6,0.40068]
[1729702469403,4.38780332,2497.7,2497.5,0.40069]
[1729702469598,4.38780332,2497.7,2497.6,0.40068]
[1729702469800,0.40065,2497.8,2497.5,0.40069]
[1729702470095,4.48780332,2497.8,2497.1,3.2078]
[1729702470298,0.1,2497.8,2497.7,0.40066]
[1729702470698,3.2078,2498.0,2497.9,0.40063]
[1729702471100,4.20166801,2498.0,2497.9,0.40063]
[1729702471499,0.1,2498.1,2498.0,0.40062]
[1729702471900,4.20166801,2498.1,2498.0,0.40062]
[1729702472101,0.40057,2498.3,2498.0,0.40062]
[1729702472305,7.5278,2498.4,2497.9,4.0032]
[1729702472500,3.2078,2498.4,2498.3,0.40057]
[1729702472702,4.6539,2498.9,2498.0,0.4006]
[1729702472703,4.32,2498.6,2498.0,0.4006]
[1729702472899,4.48023585,2498.4,2498.0,40.8]
[1729702473200,7.79661492,2498.5,2498.0,40.8]
[1729702473401,0.4006,2498.2,2497.8,3.2078]
[1729702473599,5.01218492,2498.3,2498.1,0.40059]
[1729702473806,4.58881492,2498.1,2497.9,40.8]
[1729702474107,4.58786314,2498.2,2498.0,0.40062]
[1729702474406,0.40058,2498.3,2498.0,0.40062]
[1729702474710,0.40058,2498.3,2497.8,3.2078]
[1729702474711,0.40063,2497.9,2497.8,3.2078]
[1729702474903,4.58786314,2498.2,2497.8,3.2078]
[1729702475202,4.46703511,2497.9,2497.8,3.2078]
[1729702475407,0.40061,2498.1,2497.9,0.40062]
[1729702475809,4.46703511,2498.0,2497.8,3.2078]
[1729702476012,4.86765511,2498.0,2497.8,3.60844]
[1729702476206,4.58058999,2498.2,2497.8,3.2078]
[1729702476406,4.58058999,2497.9,2497.8,3.60844]
[1729702476602,7.5278,2497.9,2496.9,3.2078]
[1729702476810,0.40077,2497.1,2496.9,0.40078]
[1729702477110,0.40072,2497.4,2496.8,3.2078]
[1729702477301,0.40074,2497.3,2497.1,0.40075]
[1729702477505,4.53721221,2497.3,2497.2,0.40074]
[1729702477701,4.53721221,2497.6,2496.8,3.2078]
[1729702477907,3.2078,2497.7,2496.8,4.20983]
[1729702478102,0.40072,2497.4,2497.2,0.40073]
[1729702478308,4.18194526,2497.6,2496.8,3.2078]
[1729702478607,4.18194526,2497.6,2497.4,0.40071]
[1729702478608,0.4007,2497.5,2497.4,0.40071]
[1729702478908,0.40069,2497.6,2497.5,0.4007]
[1729702479103,4.32,2497.9,2497.5,0.4007]
[1729702479310,4.54480153,2497.5,2497.4,0.40071]
[1729702479513,3.2078,2497.7,2497.5,0.40068]
[1729702479813,4.54480153,2497.6,2497.5,0.40068]
[1729702480010,4.94548153,2497.6,2497.5,0.40068]
[1729702480417,4.54480153,2497.6,2497.5,4.40468]
[1729702480715,3.60841,2498.1,2497.9,0.40062]
[1729702480915,0.0219,2498.3,2498.2,0.40058]
[1729702481416,0.40056,2498.4,2498.2,0.40057]
[1729702481607,9.97513,2498.9,2498.1,3.2078]
[1729702481608,3.60833,2498.6,2498.4,0.40055]
[1729702481804,3.60833,2498.6,2498.1,3.2078]
[1729702481805,0.40051,2498.7,2498.6,0.40052]
[1729702482006,4.39748666,2498.5,2498.4,0.40055]
[1729702482202,0.0181,2498.6,2498.3,0.40056]
[1729702482504,0.0181,2498.6,2498.1,44.0078]
[1729702482505,0.40054,2498.5,2498.1,44.0078]
[1729702482710,0.40054,2498.5,2498.4,0.40055]
[1729702482906,4.55347173,2498.4,2498.2,4.0024]
[1729702483208,0.0181,2498.6,2498.1,44.0078]
[1729702483408,0.0181,2498.6,2498.5,0.40054]
[1729702483810,0.40049,2498.8,2498.7,0.4005]
[1729702484018,3.2078,2498.9,2498.3,1.00143]
[1729702484207,4.25965759,2498.8,2498.4,1.00139]
[1729702484403,4.25965759,2498.8,2498.7,0.4005]
[1729702484604,4.27685759,2498.8,2498.7,0.4005]
[1729702484816,0.0172,2498.8,2498.7,0.4005]
[1729702485015,0.40044,2499.1,2499.0,0.40045]
[1729702485222,3.2078,2499.2,2498.7,0.4005]
[1729702485514,0.40052,2498.6,2498.5,3.2078]
[1729702485918,4.75004837,2498.6,2498.5,3.2078]
[1729702486322,4.34952837,2498.6,2498.2,5.6368]
[1729702486615,3.2078,2498.3,2497.1,3.2078]
[1729702486913,4.0024,2498.5,2497.4,0.40071]
[1729702486914,0.4007,2497.5,2497.4,0.40071]
[1729702487210,0.40072,2497.4,2497.3,0.40072]
[1729702487414,7.02792729,2497.5,2496.8,3.2078]
[1729702487610,7.02792729,2497.5,2497.3,0.40073]
[1729702487611,4.38244587,2497.4,2497.3,0.40073]
[1729702487814,4.38244587,2497.7,2497.3,0.40073]
[1729702488020,6.07226,2498.3,2497.3,0.40073]
[1729702488021,3.2078,2498.3,2498.2,0.40058]
[1729702488214,0.40059,2498.2,2498.1,0.40059]
[1729702488519,0.40059,2498.2,2497.8,3.2078]
[1729702488520,4.71802661,2498.2,2497.8,3.2078]
[1729702488715,4.31743661,2498.3,2497.9,41.80158]
[1729702488920,0.40059,2498.2,2498.1,0.40059]
[1729702489121,1.00131,2498.6,2497.6,2.3056]
[1729702489122,7.52523661,2498.4,2497.6,2.3056]
[1729702489419,7.52523661,2498.4,2497.8,3.2078]
[1729702489420,4.31255723,2498.2,2497.8,3.2078]
[1729702489619,0.4006,2498.2,2498.0,0.4006]
[1729702489915,5.6423,2498.7,2498.1,3.2078]
[1729702490121,0.40058,2498.3,2498.2,0.40058]
[1729702490319,4.58600011,2498.5,2498.1,3.2078]
[1729702490611,5.6423,2498.7,2498.2,0.40057]
[1729702490612,0.40057,2498.3,2498.2,0.40057]
[1729702490818,5.87208,2499.0,2498.1,3.2078]
[1729702490819,4.58600011,2498.4,2498.3,0.40057]
[1729702491015,4.98654011,2498.5,2498.1,3.2078]
[1729702491322,3.48866298,2498.7,2498.1,3.2078]
[1729702491515,3.48866298,2498.7,2498.2,0.40058]
[1729702491516,0.40058,2498.3,2498.2,0.40058]
[1729702491717,0.40056,2498.4,2498.3,0.40056]
[1729702491916,0.40054,2498.5,2498.4,0.40054]
[1729702492112,3.2078,2498.8,2497.6,2.3056]
[1729702492113,4.45992612,2498.6,2497.6,2.3056]
[1729702492418,0.4006,2498.2,2498.1,0.4006]
[1729702492611,3.2078,2498.5,2497.7,4.20945]
[1729702492817,0.40059,2498.2,2498.1,0.40058]
[1729702493015,4.64389216,2498.5,2498.0,3.2078]
[1729702493216,0.40058,2498.3,2498.2,0.40058]
[1729702493416,1.00128,2498.7,2497.6,2.3056]
[1729702493417,3.2078,2498.6,2497.6,2.3056]
[1729702493616,0.40063,2498.0,2497.9,0.40062]
[1729702493825,4.45207946,2498.4,2497.8,1.00163]
[1729702494024,4.45207946,2498.4,2496.8,1.03946924]
[1729702494025,4.32,2497.9,2496.8,1.03946924]
[1729702494219,4.32,2497.9,2496.2,5.20272677]
[1729702494220,7.5278,2496.9,2495.7,40.80119329]
[1729702494426,3.2078,2496.2,2495.7,40.80119329]
[1729702494617,3.6087,2496.2,2496.0,0.40093]
[1729702494925,4.29582505,2496.1,2495.7,40.80119329]
[1729702495125,4.29582505,2496.1,2496.0,0.40094]
[1729702495419,3.2078,2496.2,2495.7,41.80364329]
[1729702495626,3.2078,2496.2,2496.1,0.40092]
[1729702496122,3.2078,2496.2,2496.1,4.40732]
[1729702497319,3.2078,2496.8,2496.7,0.40082]
[1729702497721,3.2078,2496.8,2496.7,4.40642]
[1729702498523,3.2078,2496.8,2496.7,0.40082]
[1729702498823,3.2078,2496.8,2496.3,2.3351]
[1729702499025,3.2078,2496.8,2496.5,41.20085]
[1729702499228,4.86873233,2496.7,2496.5,41.20085]
[1729702499428,4.46789233,2496.7,2496.5,41.20085]
[1729702499733,4.46789233,2496.7,2496.5,40.8]
[1729702500220,0.40084,2496.6,2496.5,40.8]
[1729702500616,4.98604572,2496.6,2496.5,40.8]
[1729702500818,0.40092,2496.1,2495.9,0.40095]
[1729702501015,3.2078,2496.2,2495.6,3.2078]
[1729702501214,3.2078,2496.2,2496.1,0.40092]
[1729702501627,3.2078,2496.5,2496.4,0.40087]
[1729702501825,3.2078,2496.8,2496.2,2.431]
[1729702502023,3.60866,2496.5,2496.3,0.40088]
[1729702502224,4.4372855,2496.5,2496.3,0.40088]
[1729702502422,7.5278,2496.5,2496.1,0.40091]
[1729702502621,4.5926159,2496.4,2496.1,0.40092]
[1729702502827,4.5926159,2496.4,2495.8,40.8]
[1729702503025,3.2078,2496.2,2496.1,0.40092]
[1729702503224,7.5278,2496.2,2495.8,40.8]
[1729702503420,7.5278,2496.2,2495.7,0.00119329]
[1729702503421,0.40097,2495.8,2494.9,0.40111]
[1729702503723,0.40114,2494.8,2494.6,0.40116]
[1729702503924,3.2078,2494.7,2494.6,0.40116]
[1729702504122,3.2078,2495.2,2494.7,4.008]
[1729702504320,3.2078,2495.3,2494.8,1.00283]
[1729702504527,6.6228,2495.7,2494.9,1.00279]
[1729702504528,9.8306,2495.7,2494.9,1.00279]
[1729702504723,4.57586124,2495.5,2495.2,1.00266]
[1729702504924,3.2078,2495.7,2495.0,4.21051]
[1729702505122,3.2078,2495.3,2494.8,2.428]
[1729702505328,3.2078,2495.1,2495.0,0.40109]
[1729702505529,4.29621591,2495.2,2494.6,3.2078]
[1729702505725,3.60884,2495.4,2495.2,0.40106]
[1729702506126,4.29621591,2495.3,2495.2,0.40106]
[1729702506321,4.29621591,2495.3,2494.6,3.2078]
[1729702506534,3.2078,2494.8,2494.6,0.40116]
[1729702506728,8.3288,2494.7,2494.3,40.8]
[1729702507036,4.44622728,2494.7,2494.6,0.40116]
[1729702507429,4.44622728,2494.7,2494.3,40.8]
[1729702507622,4.44622728,2494.7,2494.6,0.40116]
[1729702507825,3.2078,2494.8,2494.3,40.8]
[1729702507826,3.2078,2494.8,2494.7,0.40115]
[1729702508128,5.6183,2495.3,2494.6,1.00289]
[1729702508431,5.6183,2495.3,2494.7,1.00287]
[1729702508734,4.48934188,2495.2,2495.1,0.40107]
[1729702509329,3.2078,2495.3,2495.2,0.40107]
[1729702509532,3.2078,2495.3,2495.1,0.40107]
[1729702509728,8.61533421,2495.2,2494.6,3.2078]
[1729702510035,0.40121,2494.4,2493.8,0.40129]
[1729702510233,3.2078,2494.0,2493.6,3.2078]
[1729702510434,3.2078,2494.0,2493.7,40.8]
[1729702510728,3.44638,2493.9,2493.8,0.40129]
[1729702510933,0.4012,2494.4,2493.7,40.8]
[1729702511133,3.2078,2494.2,2493.7,41.80327]
[1729702511437,3.2078,2494.2,2494.1,0.40124]
[1729702512030,17.1288345,2494.2,2493.5,3.2078]
[1729702512225,0.40131,2493.7,2493.5,3.60913]
[1729702512428,3.2078,2493.9,2493.6,0.40132]
[1729702512429,0.4013,2493.8,2493.6,0.40132]
[1729702512729,4.73078967,2493.8,2493.5,3.60913]
[1729702512934,4.32948967,2493.8,2493.2,3.6078]
[1729702513133,0.40131,2493.7,2493.2,3.6078]
[1729702513335,4.73078967,2493.8,2493.5,0.40133]
[1729702513535,4.25388864,2493.6,2493.3,4.32]
[1729702513743,2.4206,2494.3,2493.3,4.32]
[1729702513744,3.2078,2493.9,2493.3,4.32]
[1729702514227,3.2078,2493.9,2493.2,0.4]
[1729702514228,3.2078,2493.6,2493.2,0.4]
[1729702514428,3.2078,2493.6,2492.3,3.2078]
[1729702514429,0.40151,2492.5,2492.3,3.2078]
[1729702514731,0.40151,2492.5,2491.0,0.00475255]
[1729702514732,3.2078,2492.0,2490.3,0.17989104]
[1729702514930,3.2078,2490.9,2490.8,0.40177]
[1729702515132,3.2078,2490.9,2490.5,1.40638]
[1729702515432,3.2078,2491.2,2491.1,0.40173]
[1729702515933,3.2078,2491.2,2490.1,3.2078]
[1729702515934,11.58521513,2491.2,2490.1,3.2078]
[1729702516134,3.2078,2490.5,2490.4,0.40184]
[1729702516353,3.2078,2490.5,2490.4,41.20184]
[1729702516545,4.32,2491.7,2490.4,44.0078]
[1729702516546,3.2078,2491.7,2490.4,44.0078]
[1729702516848,6.6499,2492.4,2490.4,44.0078]
[1729702516849,4.18837203,2491.6,2491.1,3.2078]
[1729702517040,3.21073203,2491.6,2491.5,3.60946]
[1729702517343,1.865,2493.4,2491.5,3.2078]
[1729702517344,3.2078,2492.1,2491.5,3.2078]
[1729702517546,2.0357983,2491.6,2491.5,7.62306]
[1729702517743,3.2078,2492.1,2492.0,0.40158]
[1729702518252,3.2078,2492.7,2492.0,7.2206]
[1729702518438,3.2078,2492.7,2492.0,3.2078]
[1729702518642,3.2078,2492.7,2492.6,0.40148]
[1729702518839,3.2078,2492.7,2492.6,41.20148]
[1729702519151,7.86553146,2492.7,2492.6,45.21348]
[1729702519354,3.2078,2492.7,2492.6,41.20148]
[1729702519650,7.68106659,2492.7,2492.6,45.21348]
[1729702519845,3.2078,2493.6,2492.6,48.0198]
[1729702520040,3.2078,2493.6,2493.2,0.40138]
[1729702520240,3.2078,2493.6,2492.6,45.01148]
[1729702520241,4.60230778,2493.4,2493.3,0.40136]
[1729702520442,4.60230778,2493.5,2493.3,0.40136]
[1729702520641,4.60230778,2493.5,2492.9,3.2078]
[1729702520642,3.2078,2493.6,2493.5,0.40134]
[1729702520846,5.00367778,2493.4,2492.6,0.40148]
[1729702521050,3.2078,2492.7,2492.3,0.40152]
[1729702521347,3.41378794,2492.6,2492.4,0.40151]
[1729702521548,3.41378794,2492.6,2492.1,3.2078]
[1729702521738,3.41378794,2492.6,2492.5,0.4015]
[1729702522137,3.2078,2493.0,2492.5,4.012]
[1729702522344,3.2078,2493.0,2492.9,0.40144]
[1729702522651,4.2080665,2493.2,2493.1,0.4014]
[1729702522842,1.00291,2494.6,2493.1,0.4014]
[1729702522843,2.29,2493.9,2493.1,7.219]
[1729702523148,2.3253,2494.2,2492.9,1.866]
[1729702523149,4.27692853,2493.8,2493.7,3.60911]
[1729702523344,1.20294853,2493.8,2493.7,3.60911]
[1729702523545,3.60891,2495.0,2493.7,3.60911]
[1729702523546,4.27692853,2493.9,2493.8,0.40129]
[1729702523748,3.2078,2494.5,2493.7,3.2078]
[1729702523945,4.27692853,2494.1,2494.0,0.40126]
[1729702524247,3.2078,2495.7,2494.1,4.41369]
[1729702524545,6.64164911,2495.8,2495.6,0.401]
[1729702524751,6.64164911,2495.8,2495.1,3.2078]
[1729702524948,4.17454911,2495.6,2495.5,0.40102]
[1729702525252,4.17454911,2495.7,2495.6,0.401]
[1729702525452,3.2078,2496.3,2496.2,0.4009]
[1729702525639,4.73758822,2496.3,2496.2,0.4009]
[1729702525845,3.2078,2496.3,2496.2,0.4009]
[1729702526155,3.2078,2496.6,2495.7,3.2078]
[1729702526448,4.45686193,2496.5,2496.0,0.40093]
[1729702526642,3.2078,2496.3,2496.1,0.40092]
[1729702526842,3.2078,2496.3,2496.0,0.40093]
[1729702527045,4.45686193,2496.2,2496.1,0.40092]
[1729702527844,0.40077,2497.1,2496.1,0.40092]
[1729702527845,3.2078,2497.7,2496.1,11.6042]
[1729702528054,3.2078,2497.7,2496.7,4.20985]
[1729702528256,3.2078,2497.7,2496.1,4.0764]
[1729702528257,4.25530052,2497.0,2496.8,0.4008]
[1729702528452,3.2078,2497.3,2496.3,40.8]
[1729702528650,3.2078,2496.9,2496.8,0.40081]
[1729702528952,3.2078,2497.1,2497.0,0.40077]
[1729702529148,4.25530052,2497.5,2497.1,0.40075]
[1729702529348,3.2078,2497.6,2497.0,0.40077]
[1729702529546,3.2078,2497.2,2496.5,7.5278]
[1729702529750,3.2078,2497.2,2497.1,0.40076]
[1729702529943,3.2078,2497.6,2497.2,0.40074]
[1729702530353,4.22576356,2497.5,2497.2,0.40074]
[1729702530852,4.22576356,2497.5,2497.4,0.40071]
[1729702531152,4.22576356,2497.5,2496.9,4.32]
[1729702531342,4.22576356,2497.5,2497.4,0.40071]
[1729702531545,4.22576356,2497.5,2497.2,0.40074]
[1729702531857,4.22576356,2497.5,2497.1,0.40075]
[1729702532056,4.22576356,2497.5,2497.2,0.40074]
[1729702532249,3.2078,2497.3,2497.2,0.40074]
[1729702532449,3.2078,2497.3,2496.1,3.60872]
[1729702532450,0.40081,2496.8,2496.1,3.60872]
[1729702532755,3.2078,2496.4,2495.4,3.2078]
[1729702532954,4.34167348,2496.7,2495.1,4.32]
[1729702532955,3.2078,2496.1,2495.1,4.32]
[1729702533256,3.2078,2495.8,2495.1,4.32]
[1729702533453,3.2078,2495.9,2495.5,0.40101]
[1729702533663,4.34167348,2495.7,2495.6,0.401]
[1729702533855,3.2078,2495.9,2495.3,3.2078]
[1729702533856,4.58632409,2495.8,2495.3,3.2078]
[1729702534158,3.2078,2495.9,2494.9,3.28408]
[1729702534159,3.2078,2495.9,2495.0,44.0078]
[1729702534350,4.18357056,2495.8,2495.0,44.0078]
[1729702534551,4.18357056,2495.8,2495.3,0.40104]
[1729702534751,4.18357056,2495.8,2495.0,44.0078]
[1729702534959,3.2078,2495.9,2495.8,0.40097]
[1729702535260,3.2078,2495.9,2495.3,3.2078]
[1729702535454,3.2078,2495.9,2495.0,40.8]
[1729702535655,3.2078,2495.6,2495.0,40.8]
[1729702535959,3.2078,2495.3,2494.3,3.2078]
[1729702536157,3.2078,2495.3,2494.7,0.40114]
[1729702536356,4.32,2495.7,2494.9,0.4011]
[1729702536357,3.2078,2495.6,2494.9,0.4011]
[1729702536563,4.31124184,2495.2,2494.6,3.2078]
[1729702536853,5.50352,2496.4,2494.6,3.2078]
[1729702536854,4.35683012,2495.5,2494.7,1.40402]
[1729702537162,3.2078,2495.6,2495.5,0.40102]
[1729702537652,3.2078,2495.6,2494.9,3.2078]
[1729702537860,3.2078,2495.6,2495.5,0.40102]
[1729702538058,3.2078,2495.9,2495.2,3.2078]
[1729702538259,3.2078,2495.9,2495.8,0.40097]
[1729702538651,7.2142,2495.9,2495.8,40.8]
[1729702538852,7.2142,2495.9,2495.0,2.4214]
[1729702538853,11.18826882,2495.9,2495.0,2.4214]
[1729702539057,3.2078,2495.6,2494.8,3.2078]
[1729702539259,3.2078,2495.6,2494.9,40.8]
[1729702539462,4.27354337,2495.5,2495.0,0.40109]
[1729702539663,4.27354337,2495.5,2494.9,40.8]
[1729702539860,4.27354337,2495.5,2495.0,0.4011]
[1729702540061,4.27354337,2495.5,2495.2,0.40106]
[1729702540258,4.27354337,2495.5,2494.9,40.8]
[1729702540259,4.27354337,2495.5,2495.3,0.40104]
[1729702540563,4.27354337,2495.5,2495.1,0.40107]
[1729702540765,4.27354337,2495.5,2495.2,0.40106]
[1729702540967,4.27354337,2495.5,2494.9,40.8]
[1729702541157,3.2078,2495.1,2494.2,3.2078]
[1729702541357,4.27354337,2495.5,2494.2,0.40122]
[1729702541358,3.60894,2494.8,2494.2,0.40122]
[1729702541657,4.51418673,2494.7,2494.0,3.2078]
[1729702541956,3.2078,2494.8,2494.6,0.40116]
[1729702542259,3.2078,2494.8,2494.3,3.2078]
[1729702542464,3.2078,2494.8,2494.4,1.00299]
[1729702542657,3.2078,2494.8,2494.7,0.40115]
[1729702542857,3.2078,2495.1,2494.5,4.0088]
[1729702543059,3.2078,2495.5,2494.3,3.2078]
[1729702543259,3.2078,2495.5,2494.5,0.40117]
[1729702543260,7.75137975,2495.0,2494.5,0.40117]
[1729702543457,7.75137975,2495.0,2494.3,3.2078]
[1729702543458,3.2078,2495.0,2494.3,3.2078]
[1729702543761,4.41768531,2494.9,2494.3,3.2078]
[1729702543962,4.41768531,2494.9,2494.4,0.40119]
[1729702544157,4.41768531,2494.9,2494.4,40.8]
[1729702544362,4.41768531,2494.9,2494.4,41.20118]
[1729702544563,4.41768531,2494.9,2494.4,40.8]
[1729702544763,7.62548531,2494.9,2494.4,40.8]
[1729702544960,3.2078,2495.2,2494.8,0.40113]
[1729702545159,3.2078,2495.2,2494.4,40.8]
[1729702545458,3.2078,2495.2,2494.5,1.00295]
[1729702545459,4.17805305,2495.1,2494.5,1.00295]
[1729702545664,4.17805305,2495.1,2495.0,0.4011]
[1729702546053,3.2078,2495.7,2495.0,4.008]
[1729702546271,2.4019,2495.8,2495.0,0.4011]
[1729702546272,3.2078,2495.4,2495.0,0.4011]
[1729702546562,4.50245737,2495.3,2494.6,3.2078]
[1729702546960,4.50245737,2495.3,2494.7,0.40115]
[1729702547158,3.2078,2495.7,2494.6,3.2078]
[1729702547356,0.40118,2494.5,2494.4,40.8]
[1729702547660,3.2078,2494.7,2492.5,2.3335]
[1729702547661,4.32,2494.6,2492.5,2.3335]
[1729702547860,3.2078,2494.7,2492.4,3.2078]
[1729702547861,3.2078,2493.0,2492.4,3.2078]
[1729702548061,3.2078,2493.0,2492.6,40.8]
[1729702548263,4.32,2493.3,2492.6,40.8]
[1729702548264,4.52612396,2492.9,2492.6,40.8]
[1729702548556,4.54768026,2493.2,2492.6,40.8]
[1729702548963,4.54768026,2493.4,2492.7,3.2078]
[1729702549164,4.54768026,2493.2,2492.7,3.2078]